bitfinex/quotes_BTCUSD_20250123
["timestamp","ask_amount","ask_price","bid_price","bid_amount"]
[1737669135545,0.00175726,102780.0,102770.0,0.106304]
[1737669135878,0.00175726,102780.0,102770.0,0.260304]
[1737669136249,0.00075726,102780.0,102770.0,0.251304]
[1737669136730,0.00144792,102780.0,102770.0,0.258304]
[1737669137694,0.00144792,102780.0,102770.0,0.26563108]
[1737669138161,0.00144792,102780.0,102770.0,0.40061041]
[1737669138367,0.00144792,102780.0,102770.0,0.37761041]
[1737669138571,0.00144792,102780.0,102770.0,0.40261041]
[1737669138808,0.00144792,102780.0,102770.0,0.48301041]
[1737669139232,0.00144792,102780.0,102770.0,0.46001041]
[1737669139455,0.00144792,102780.0,102770.0,0.48301041]
[1737669140063,0.0017574,102780.0,102770.0,0.48301041]
[1737669141633,0.00144792,102780.0,102770.0,0.48301041]
[1737669143111,0.00144792,102780.0,102770.0,0.50201015]
[1737669143534,0.00144792,102780.0,102770.0,0.55201015]
[1737669143957,0.0003097,102790.0,102780.0,0.33892704]
[1737669144160,0.00152535,102800.0,102790.0,0.42161704]
[1737669144363,0.00152535,102800.0,102790.0,0.51896433]
[1737669144543,0.00152535,102800.0,102790.0,0.49919623]
[1737669144806,0.00152535,102800.0,102790.0,0.46896433]
[1737669145462,0.00252535,102800.0,102790.0,0.52796433]
[1737669145667,0.00152535,102800.0,102790.0,0.51896433]
[1737669145869,0.00152535,102800.0,102790.0,0.55615257]
[1737669146042,0.00252535,102800.0,102790.0,0.52596433]
[1737669146919,0.00029904,102810.0,102800.0,0.33890804]
[1737669147125,0.00029904,102810.0,102800.0,0.43625533]
[1737669148140,0.00029904,102810.0,102800.0,0.44369051]
[1737669148276,0.00029904,102810.0,102800.0,0.44569051]
[1737669149459,0.00029829,102830.0,102820.0,0.247257]
[1737669149672,0.00079425,102830.0,102820.0,0.34460429]
[1737669149878,0.00079425,102830.0,102820.0,0.35200316]
[1737669150463,0.00110141,102830.0,102820.0,0.35200316]
[1737669151086,0.00110141,102830.0,102820.0,0.3706352]
[1737669151259,0.00210141,102830.0,102820.0,0.3706352]
[1737669151460,0.00210141,102830.0,102820.0,0.35200316]
[1737669152042,0.00179425,102830.0,102820.0,0.35200316]
[1737669152945,0.00179425,102830.0,102820.0,0.3706352]
[1737669153357,0.00179425,102830.0,102820.0,0.38011439]
[1737669153530,0.00179425,102830.0,102820.0,0.40311439]
[1737669154729,0.00079425,102830.0,102820.0,0.40311439]
[1737669154911,0.00179425,102830.0,102820.0,0.40311439]
[1737669155093,0.00179425,102830.0,102820.0,0.40511439]
[1737669155320,0.00179425,102830.0,102820.0,0.38211439]
[1737669155524,0.00179425,102830.0,102820.0,0.36348235]
[1737669155525,0.00079425,102830.0,102820.0,0.36348235]
[1737669155977,0.00079425,102830.0,102820.0,0.38211439]
[1737669157097,0.00079425,102830.0,102820.0,0.53811439]
[1737669158207,0.00079425,102830.0,102820.0,0.78811439]
[1737669158409,0.00079425,102830.0,102820.0,0.78711439]
[1737669158591,0.00079425,102830.0,102820.0,0.80612844]
[1737669158798,0.00079425,102830.0,102820.0,0.81112844]
[1737669159225,0.00079425,102830.0,102820.0,0.60782844]
[1737669160292,0.00079425,102830.0,102820.0,0.85782844]
[1737669160543,0.00079425,102830.0,102820.0,0.85282844]
[1737669160690,0.00079425,102830.0,102820.0,0.85182844]
[1737669160888,0.00079425,102830.0,102820.0,0.85682844]
[1737669161296,0.00079425,102830.0,102820.0,0.86582844]
[1737669161489,0.00079425,102830.0,102820.0,0.86082844]
[1737669161687,0.00079425,102830.0,102820.0,0.86682844]
[1737669163525,0.00079425,102830.0,102820.0,0.85782844]
[1737669163707,0.00079425,102830.0,102820.0,0.85785245]
[1737669163906,0.00079425,102830.0,102820.0,0.86485245]
[1737669165954,0.00079425,102830.0,102820.0,0.86499475]
[1737669166783,2.5e-07,102830.0,102820.0,0.86499475]
[1737669167419,2.5e-07,102830.0,102820.0,0.8950391]
[1737669167652,2.5e-07,102830.0,102820.0,0.8880391]
[1737669168307,2.5e-07,102830.0,102820.0,0.8970391]
[1737669169624,0.00030716,102870.0,102860.0,0.247219]
[1737669169880,0.00030716,102870.0,102860.0,0.34456629]
[1737669169881,0.0004559,102870.0,102860.0,0.34456629]
[1737669170080,0.0004559,102870.0,102860.0,0.34893613]
[1737669170951,0.0004559,102870.0,102860.0,0.35093613]
[1737669172953,0.00182386,102870.0,102860.0,0.00636984]
[1737669173156,0.0976659,102870.0,102860.0,0.00636984]
[1737669173383,0.27441319,102870.0,102860.0,0.00636984]
[1737669173558,0.2925363,102870.0,102860.0,0.00636984]
[1737669173966,0.2925363,102870.0,102860.0,0.00786945]
[1737669174234,0.2925363,102870.0,102860.0,0.00586945]
[1737669174587,0.00136796,102860.0,102850.0,0.441682]
[1737669175602,0.00136796,102860.0,102850.0,0.43375394]
[1737669176009,0.00136796,102860.0,102850.0,0.44165233]
[1737669176473,0.00136796,102860.0,102850.0,0.24719633]
[1737669176821,0.097219,102860.0,102850.0,0.00789839]
[1737669177025,0.49155024,102860.0,102850.0,0.00789839]
[1737669177246,0.41306512,102860.0,102850.0,0.00789839]
[1737669177512,0.41306512,102860.0,102850.0,0.002]
[1737669177818,0.41306512,102860.0,102850.0,0.00694708]
[1737669178024,0.32143308,102860.0,102850.0,0.002]
[1737669178237,0.12686679,102860.0,102850.0,0.099228]
[1737669178438,0.22408579,102860.0,102850.0,0.002]
[1737669178649,0.22271783,102860.0,102850.0,0.002]
[1737669178987,0.22471783,102860.0,102850.0,0.002]
[1737669179387,0.32206512,102860.0,102850.0,0.002]
[1737669179796,0.00136796,102840.0,102830.0,0.441736]
[1737669180525,0.22608679,102860.0,102850.0,0.097228]
[1737669180704,0.00136796,102850.0,102840.0,0.441693]
[1737669180910,0.22608679,102860.0,102850.0,0.097228]
[1737669181159,0.12886679,102860.0,102850.0,0.247228]
[1737669181327,0.22271783,102860.0,102850.0,0.247228]
[1737669181533,0.12549883,102860.0,102850.0,0.247228]
[1737669181896,0.12549883,102860.0,102850.0,0.15]
[1737669181897,0.22271783,102860.0,102850.0,0.15]
[1737669182049,0.32006512,102860.0,102850.0,0.15]
[1737669182250,0.00136796,102850.0,102830.0,0.583485]
[1737669182422,0.00136796,102850.0,102840.0,0.247238]
[1737669182617,0.12686679,102860.0,102850.0,0.097228]
[1737669183445,0.12886679,102860.0,102850.0,0.097228]
[1737669184493,0.12686679,102860.0,102850.0,0.097228]
[1737669184700,0.41852879,102860.0,102850.0,0.097228]
[1737669184923,0.41952879,102860.0,102850.0,0.097228]
[1737669185307,0.22508979,102860.0,102850.0,0.097228]
[1737669186523,0.22272183,102860.0,102850.0,0.097228]
[1737669186834,0.22608579,102860.0,102850.0,0.097228]
[1737669187041,0.12886679,102860.0,102850.0,0.097228]
[1737669187236,0.12686679,102860.0,102850.0,0.097228]
[1737669187577,0.12786679,102860.0,102850.0,0.097228]
[1737669187789,0.00129883,102860.0,102850.0,0.097228]
[1737669187988,0.00129883,102860.0,102850.0,0.19457529]
[1737669189310,0.00129883,102860.0,102850.0,0.43620733]
[1737669189513,0.00014874,102870.0,102860.0,0.33885104]
[1737669189722,0.00014874,102870.0,102860.0,0.48139833]
[1737669190377,0.00014874,102870.0,102860.0,0.73139833]
[1737669190587,0.00014874,102870.0,102860.0,0.66276629]
[1737669190800,0.00014874,102870.0,102860.0,0.64776629]
[1737669191216,0.00014874,102870.0,102860.0,0.39776629]
[1737669191442,0.00014874,102870.0,102860.0,0.39976629]
[1737669193092,0.00014874,102870.0,102860.0,0.35456629]
[1737669195160,0.00014874,102870.0,102860.0,0.42319833]
[1737669195566,0.00014874,102870.0,102860.0,0.44619833]
[1737669196115,0.00014874,102870.0,102860.0,0.69619833]
[1737669196360,0.00014874,102870.0,102860.0,0.60456629]
[1737669197120,0.00014874,102870.0,102860.0,0.35456629]
[1737669199539,0.00014874,102870.0,102860.0,0.40456629]
[1737669199771,0.00014874,102870.0,102860.0,0.48136629]
[1737669200792,0.00014874,102870.0,102860.0,0.48150849]
[1737669201021,0.00044736,102870.0,102860.0,0.48150849]
[1737669201772,0.00044736,102870.0,102860.0,0.50014053]
[1737669203348,0.00044736,102870.0,102860.0,0.48150849]
[1737669203761,0.00044736,102870.0,102860.0,0.35470849]
[1737669203970,0.00181532,102870.0,102860.0,0.2573612]
[1737669204112,0.00181532,102870.0,102860.0,0.1073612]
[1737669204544,0.00181532,102870.0,102860.0,0.2573612]
[1737669206934,0.00044736,102870.0,102860.0,0.2573612]
[1737669207477,0.00044736,102870.0,102860.0,0.35470849]
[1737669207944,0.00044736,102870.0,102860.0,0.42334053]
[1737669208797,0.00044736,102870.0,102860.0,0.44634053]
[1737669209003,0.00044736,102870.0,102860.0,0.52384053]
[1737669209201,0.00044736,102870.0,102860.0,0.77384053]
[1737669210062,0.00044736,102870.0,102860.0,0.75520849]
[1737669210427,0.00044736,102870.0,102860.0,0.70520849]
[1737669210868,0.00044736,102870.0,102860.0,0.72384053]
[1737669211099,0.00044736,102870.0,102860.0,0.77384053]
[1737669211306,0.00044736,102870.0,102860.0,0.79301882]
[1737669211724,0.00044736,102870.0,102860.0,0.74301882]
[1737669212179,0.00044736,102870.0,102860.0,0.79803265]
[1737669212412,0.00044736,102870.0,102860.0,0.54803265]
[1737669214303,3.6e-07,102870.0,102860.0,0.79803265]
[1737669214671,3.6e-07,102870.0,102860.0,0.87452443]
[1737669215505,3.6e-07,102870.0,102860.0,0.86452443]
[1737669215687,3.6e-07,102870.0,102860.0,0.87152443]
[1737669215852,3.6e-07,102870.0,102860.0,0.88052443]
[1737669216808,3.6e-07,102870.0,102860.0,0.86189239]
[1737669216986,3.6e-07,102870.0,102860.0,0.88052443]
[1737669217714,3.6e-07,102870.0,102860.0,0.86189239]
[1737669217943,3.6e-07,102870.0,102860.0,0.88052443]
[1737669218746,3.6e-07,102870.0,102860.0,0.86189239]
[1737669218923,3.6e-07,102870.0,102860.0,0.88052443]
[1737669220022,3.6e-07,102870.0,102860.0,1.36659443]
[1737669220558,8.2e-07,102880.0,102870.0,0.33884204]
[1737669220756,8.2e-07,102880.0,102870.0,0.95243111]
[1737669220869,8.2e-07,102880.0,102870.0,0.95736816]
[1737669221280,6.5e-07,102890.0,102880.0,0.09163204]
[1737669221485,6.5e-07,102890.0,102880.0,0.95237111]
[1737669222510,6.5e-07,102890.0,102880.0,0.95437111]
[1737669222894,6.5e-07,102890.0,102880.0,0.90437111]
[1737669223128,6.5e-07,102890.0,102880.0,0.96237111]
[1737669223316,6.5e-07,102890.0,102880.0,0.91237111]
[1737669223780,6.5e-07,102890.0,102880.0,0.89373907]
[1737669224403,6.5e-07,102890.0,102880.0,0.87567178]
[1737669224626,6.5e-07,102890.0,102880.0,0.84548]
[1737669225391,6.5e-07,102890.0,102880.0,0.85495187]
[1737669226443,6.5e-07,102890.0,102880.0,0.69548]
[1737669226444,0.00136861,102890.0,102880.0,0.69548]
[1737669226673,0.08396861,102890.0,102880.0,0.59813271]
[1737669226875,0.08396861,102890.0,102880.0,0.74813271]
[1737669227289,0.08396861,102890.0,102880.0,0.7432]
[1737669227517,0.08396861,102890.0,102880.0,0.7412]
[1737669227839,0.08396861,102890.0,102880.0,0.7332]
[1737669228049,0.08396861,102890.0,102880.0,0.7352]
[1737669228852,0.00027367,102890.0,102880.0,1.04967933]
[1737669229058,0.00029925,102900.0,102880.0,1.07992439]
[1737669229276,0.00029925,102900.0,102890.0,0.43617033]
[1737669229516,0.00029925,102900.0,102890.0,0.41753829]
[1737669229879,0.00029925,102900.0,102890.0,0.39453829]
[1737669231193,0.00166721,102900.0,102890.0,0.39453829]
[1737669231617,0.00166721,102900.0,102890.0,0.39553829]
[1737669231817,0.00166721,102900.0,102890.0,0.40353829]
[1737669232021,0.00166721,102900.0,102890.0,0.39553829]
[1737669232218,0.00029925,102900.0,102890.0,0.39553829]
[1737669232423,0.00029925,102900.0,102890.0,0.40053829]
[1737669232624,0.00029925,102900.0,102890.0,0.39553829]
[1737669232826,0.00029925,102900.0,102890.0,0.39453829]
[1737669233134,0.00029925,102900.0,102890.0,0.39653829]
[1737669233950,0.00029925,102900.0,102890.0,0.50507619]
[1737669234200,0.00029925,102900.0,102890.0,0.75507619]
[1737669234866,0.00029925,102900.0,102890.0,0.77729908]
[1737669235066,0.00029925,102900.0,102890.0,1.27225908]
[1737669235275,0.00029925,102900.0,102890.0,1.02225908]
[1737669235949,0.00029925,102900.0,102890.0,1.02025908]
[1737669236379,0.00029925,102900.0,102890.0,1.02525908]
[1737669236952,0.00029925,102900.0,102890.0,1.02589567]
[1737669237265,0.00029925,102900.0,102890.0,1.02089567]
[1737669237455,0.00029925,102900.0,102890.0,1.00667278]
[1737669240505,0.00029925,102900.0,102890.0,1.03689352]
[1737669241734,0.00029925,102900.0,102890.0,1.07852556]
[1737669241888,2.5e-07,102900.0,102890.0,1.07852556]
[1737669243126,2.5e-07,102900.0,102890.0,1.32852556]
[1737669247117,0.00844097,102930.0,102920.0,0.223]
[1737669247327,0.00844097,102930.0,102920.0,0.46636207]
[1737669247328,9.7e-07,102930.0,102920.0,0.46636207]
[1737669247476,0.00988826,102940.0,102930.0,0.33878504]
[1737669247683,0.01038342,102940.0,102930.0,0.92190233]
[1737669247890,0.01038342,102940.0,102930.0,0.95212913]
[1737669248300,0.00049516,102940.0,102930.0,0.92190233]
[1737669248505,0.00049516,102940.0,102930.0,0.90327029]
[1737669248907,0.00049516,102940.0,102930.0,0.92190233]
[1737669249205,0.00049516,102940.0,102930.0,1.17190233]
[1737669249882,0.00049516,102940.0,102930.0,1.17390233]
[1737669250065,0.00049516,102940.0,102930.0,1.18190233]
[1737669251227,0.00049516,102940.0,102930.0,1.16327029]
[1737669251644,0.00049516,102940.0,102930.0,1.18190233]
[1737669253223,0.00049516,102940.0,102930.0,1.17990233]
[1737669253440,0.00049516,102940.0,102930.0,1.18169456]
[1737669253665,0.00049516,102940.0,102930.0,1.18869456]
[1737669253852,0.00049516,102940.0,102930.0,1.21689323]
[1737669254597,0.08229862,102980.0,102970.0,0.448115]
[1737669254598,0.00029862,102980.0,102970.0,0.448115]
[1737669254807,5e-07,102980.0,102970.0,1.05257609]
[1737669255022,5e-07,102980.0,102970.0,1.06863517]
[1737669255228,5e-07,102980.0,102970.0,1.04863517]
[1737669255435,5e-07,102980.0,102970.0,0.88004229]
[1737669255662,5e-07,102980.0,102970.0,0.83004229]
[1737669255861,5e-07,102980.0,102970.0,0.88004229]
[1737669256066,5e-07,102980.0,102970.0,0.84157882]
[1737669256496,5e-07,102980.0,102970.0,0.83457882]
[1737669256702,5e-07,102980.0,102970.0,0.88457882]
[1737669256910,5e-07,102980.0,102970.0,0.83957882]
[1737669257108,5e-07,102980.0,102970.0,0.88957882]
[1737669257313,5e-07,102980.0,102970.0,0.89857882]
[1737669257723,5e-07,102980.0,102970.0,0.9181018]
[1737669257880,5e-07,102980.0,102970.0,0.9271018]
[1737669258297,5e-07,102980.0,102970.0,0.9451018]
[1737669258505,5e-07,102980.0,102970.0,0.9651018]
[1737669258686,5e-07,102980.0,102970.0,0.9721018]
[1737669258887,5e-07,102980.0,102970.0,0.93862586]
[1737669259153,5e-07,102980.0,102970.0,0.88862586]
[1737669259586,5e-07,102980.0,102970.0,0.85110288]
[1737669260021,0.00026824,102980.0,102970.0,0.86024498]
[1737669260178,0.00026824,102980.0,102970.0,0.85124498]
[1737669260179,0.00056666,102980.0,102970.0,0.85124498]
[1737669260753,0.00056666,102980.0,102970.0,0.85224498]
[1737669260957,0.00056666,102980.0,102970.0,0.92524498]
[1737669261370,0.00056666,102980.0,102970.0,0.94524498]
[1737669261773,0.00056666,102980.0,102970.0,0.92524498]
[1737669262185,0.00056666,102980.0,102970.0,1.18024498]
[1737669262391,0.00056666,102980.0,102970.0,1.19376021]
[1737669262597,0.00056666,102980.0,102970.0,1.17524498]
[1737669262733,0.00056666,102980.0,102970.0,1.16724498]
[1737669262928,0.00056666,102980.0,102970.0,1.18324498]
[1737669263121,0.00056666,102980.0,102970.0,0.93324498]
[1737669264174,0.00056666,102980.0,102970.0,1.21327462]
[1737669264716,0.00056666,102980.0,102970.0,1.16024498]
[1737669264946,0.00056666,102980.0,102970.0,1.11024498]
[1737669265128,0.00056666,102980.0,102970.0,1.16024498]
[1737669265335,0.00056666,102980.0,102970.0,0.91024498]
[1737669265751,0.00029892,102980.0,102970.0,0.86024498]
[1737669265955,0.00029892,102980.0,102970.0,0.91024498]
[1737669266367,0.00029892,102980.0,102970.0,0.93324498]
[1737669269668,0.00029892,102980.0,102970.0,0.91024498]
[1737669269866,0.00029892,102980.0,102970.0,0.71024498]
[1737669270474,0.00029892,102980.0,102970.0,0.86024498]
[1737669270948,0.00029892,102980.0,102970.0,0.70072092]
[1737669271351,0.00029892,102980.0,102970.0,0.68918439]
[1737669271786,0.00029892,102980.0,102970.0,0.84018439]
[1737669272166,0.00029892,102980.0,102970.0,0.83918439]
[1737669272403,0.00029892,102980.0,102970.0,0.84018439]
[1737669272959,0.00029892,102980.0,102970.0,0.88018439]
[1737669273161,0.00029892,102980.0,102970.0,0.88518439]
[1737669273366,0.00029892,102980.0,102970.0,0.88918439]
[1737669273613,0.00029892,102980.0,102970.0,0.88418439]
[1737669273817,0.00029892,102980.0,102970.0,0.89318439]
[1737669274452,0.00029892,102980.0,102970.0,0.88918439]
[1737669274856,0.00029892,102980.0,102970.0,0.89418439]
[1737669275268,0.00029892,102980.0,102970.0,0.91718439]
[1737669276233,0.00029892,102980.0,102970.0,1.15318439]
[1737669276443,0.00029892,102980.0,102970.0,1.16918439]
[1737669277894,0.00029892,102980.0,102970.0,1.14618439]
[1737669278078,0.00029892,102980.0,102970.0,1.16918439]
[1737669278286,0.00029892,102980.0,102970.0,0.91918439]
[1737669278520,0.00029892,102980.0,102970.0,0.89618439]
[1737669279069,0.00029892,102980.0,102970.0,0.91918439]
[1737669282580,0.00029892,102980.0,102970.0,0.94938855]
[1737669284202,0.00029892,102980.0,102970.0,1.19938855]
[1737669285189,0.00029892,102980.0,102970.0,0.94938855]
[1737669289215,0.00029892,102980.0,102970.0,1.07608855]
[1737669289422,1e-08,102990.0,102980.0,0.320106]
[1737669289619,1e-08,102990.0,102980.0,0.44765745]
[1737669290846,1e-08,102990.0,102980.0,0.44965745]
[1737669291344,1e-08,102990.0,102980.0,0.69965745]
[1737669291539,1e-08,102990.0,102980.0,0.70865745]
[1737669294143,1e-08,102990.0,102980.0,0.72821521]
[1737669294340,1e-08,102990.0,102980.0,0.71921521]
[1737669294747,1e-08,102990.0,102980.0,0.71721521]
[1737669294948,1e-08,102990.0,102980.0,0.72621521]
[1737669295222,1e-08,102990.0,102980.0,0.73121521]
[1737669295432,0.0154258,103030.0,103020.0,0.05]
[1737669295641,0.0154258,103030.0,103020.0,0.27461945]
[1737669295850,0.0154258,103030.0,103020.0,0.93295945]
[1737669295851,0.00014846,103030.0,103020.0,0.93295945]
[1737669296926,0.00014846,103030.0,103020.0,0.93495945]
[1737669297329,0.00014846,103030.0,103020.0,1.18495945]
[1737669298158,0.00014846,103030.0,103020.0,0.94395945]
[1737669298856,0.00014846,103030.0,103020.0,0.86375529]
[1737669300157,0.08044846,103030.0,103020.0,0.61251189]
[1737669300364,0.12874846,103030.0,103020.0,0.593408]
[1737669300913,0.14874846,103030.0,103020.0,0.49634]
[1737669301040,0.14874846,103030.0,103020.0,0.593408]
[1737669301462,0.14874846,103030.0,103020.0,0.584408]
[1737669301695,0.14874846,103030.0,103020.0,0.737408]
[1737669301895,0.14874846,103030.0,103020.0,0.587408]
[1737669302092,0.14874846,103030.0,103020.0,0.56657074]
[1737669302518,0.17766575,103030.0,103020.0,0.71657074]
[1737669302690,0.25501304,103030.0,103020.0,0.61950274]
[1737669303304,0.25501304,103030.0,103020.0,0.71657074]
[1737669303505,0.27501304,103030.0,103020.0,0.71657074]
[1737669303713,0.17766575,103030.0,103020.0,0.71657074]
[1737669304739,0.17766575,103030.0,103020.0,0.61950274]
[1737669304956,0.27472475,103030.0,103020.0,0.61950274]
[1737669305165,0.35207204,103030.0,103020.0,0.61950274]
[1737669305935,0.35207204,103030.0,103020.0,0.61380157]
[1737669306140,0.35207204,103030.0,103020.0,0.12490157]
[1737669306141,0.40121417,103030.0,103020.0,0.12490157]
[1737669306341,0.40340208,103030.0,103020.0,0.12490157]
[1737669306562,0.40340208,103030.0,103020.0,0.07719133]
[1737669306773,0.22565995,103030.0,103020.0,0.00029883]
[1737669306974,0.19469705,103030.0,103020.0,0.00029883]
[1737669307376,0.02,103020.0,103010.0,0.44093083]
[1737669307747,0.0199,103020.0,103010.0,0.15]
[1737669307953,0.0199,103020.0,103010.0,0.247077]
[1737669308154,0.0199,103020.0,103010.0,0.15]
[1737669308309,0.0199,103020.0,103010.0,0.247077]
[1737669309167,0.0199,103020.0,103010.0,0.249077]
[1737669309403,0.0259668,103020.0,103010.0,0.152]
[1737669309757,0.0259668,103020.0,103010.0,0.249077]
[1737669310390,0.0259668,103020.0,103010.0,0.152]
[1737669310749,0.0259668,103020.0,103010.0,0.15]
[1737669311152,0.1230348,103020.0,103010.0,0.15]
[1737669311584,0.20048209,103020.0,103010.0,0.152]
[1737669312379,0.0259668,103020.0,103010.0,0.249077]
[1737669313945,0.0259668,103020.0,103010.0,0.247077]
[1737669314385,0.0060668,103020.0,103010.0,0.247077]
[1737669315550,0.0259668,103020.0,103010.0,0.247077]
[1737669315752,0.0199,103020.0,103010.0,0.249077]
[1737669315949,0.0199,103020.0,103010.0,0.152]
[1737669316149,0.15616333,103030.0,103010.0,0.249072]
[1737669316374,0.01810176,103020.0,103010.0,0.443222]
[1737669317031,0.01810176,103020.0,103010.0,0.441222]
[1737669317396,0.01836864,103020.0,103010.0,0.441222]
[1737669317820,0.00026688,103020.0,103010.0,0.441222]
[1737669318025,0.00026688,103020.0,103010.0,0.44152083]
[1737669318225,0.00026688,103020.0,103010.0,0.24737083]
[1737669318391,0.00026688,103020.0,103010.0,0.24937083]
[1737669319200,0.00026688,103020.0,103010.0,0.24937583]
[1737669320218,0.01833881,103020.0,103010.0,0.24937583]
[1737669320391,0.01833881,103020.0,103010.0,0.09530617]
[1737669321028,0.01833881,103020.0,103010.0,0.29795346]
[1737669321227,0.01833881,103020.0,103010.0,0.32475346]
[1737669321583,0.00026688,103020.0,103010.0,0.32475346]
[1737669322187,0.00026688,103020.0,103010.0,0.33467265]
[1737669322393,0.00029076,103030.0,103020.0,0.097068]
[1737669322595,0.00029076,103030.0,103020.0,0.19441529]
[1737669323235,0.00029076,103030.0,103020.0,0.097068]
[1737669323432,0.00029076,103030.0,103020.0,0.19451529]
[1737669323888,0.00029076,103030.0,103020.0,0.19441529]
[1737669324207,0.00029076,103030.0,103020.0,0.49791529]
[1737669324414,0.00029076,103030.0,103020.0,0.49601529]
[1737669324617,0.00029076,103030.0,103020.0,0.49611529]
[1737669324823,0.00029076,103030.0,103020.0,0.47501529]
[1737669325034,0.00029076,103030.0,103020.0,0.47301529]
[1737669325458,0.00029076,103030.0,103020.0,0.48101529]
[1737669325703,0.00029076,103030.0,103020.0,0.48301529]
[1737669326085,0.00029076,103030.0,103020.0,0.48101529]
[1737669326316,0.00029076,103030.0,103020.0,0.48201529]
[1737669327447,0.00029076,103030.0,103020.0,0.48101529]
[1737669327862,0.00029076,103030.0,103020.0,0.48311529]
[1737669329391,0.00029076,103030.0,103020.0,0.48301529]
[1737669330218,0.00029076,103030.0,103020.0,0.48311529]
[1737669331452,0.00029076,103030.0,103020.0,0.48301529]
[1737669331950,0.00029076,103030.0,103020.0,0.48311529]
[1737669332149,0.00029076,103030.0,103020.0,0.48301529]
[1737669332685,0.00029076,103030.0,103020.0,0.48311529]
[1737669333087,0.00029076,103030.0,103020.0,0.48301529]
[1737669333819,0.00029076,103030.0,103020.0,0.48311529]
[1737669335824,0.00029076,103030.0,103020.0,0.55611529]
[1737669336233,0.00029076,103030.0,103020.0,0.80611529]
[1737669336445,0.00029076,103030.0,103020.0,0.82522359]
[1737669338975,0.00029076,103030.0,103020.0,0.85539869]
[1737669339377,0.00029076,103030.0,103020.0,0.82522359]
[1737669340313,0.00029076,103030.0,103020.0,0.85538422]
[1737669341131,7.6e-07,103030.0,103020.0,0.85538422]
[1737669341536,7.6e-07,103030.0,103020.0,0.82522359]
[1737669342726,0.02915175,103090.0,103080.0,0.0818]
[1737669342939,0.0007936,103090.0,103080.0,0.42615929]
[1737669343389,0.0007936,103090.0,103080.0,0.42605929]
[1737669343597,0.0007936,103090.0,103080.0,0.247012]
[1737669344026,0.0017936,103090.0,103080.0,0.247012]
[1737669344489,0.0007936,103090.0,103080.0,0.247012]
[1737669344728,0.0007936,103090.0,103080.0,0.249012]
[1737669347471,0.0007936,103090.0,103080.0,0.34635929]
[1737669347862,0.0007936,103090.0,103080.0,0.249012]
[1737669348622,0.0009534,103090.0,103080.0,0.249012]
[1737669348823,0.0009534,103090.0,103080.0,0.34635929]
[1737669354145,0.0009534,103090.0,103080.0,0.42645929]
[1737669354759,0.0009534,103090.0,103080.0,0.249012]
[1737669354947,0.0009534,103090.0,103080.0,0.002]
[1737669354948,0.1178554,103090.0,103080.0,0.002]
[1737669355344,0.0208534,103090.0,103080.0,0.152]
[1737669355543,0.0979554,103090.0,103080.0,0.002]
[1737669355797,0.19514289,103090.0,103080.0,0.002]
[1737669355953,0.0199,103080.0,103060.0,0.48542162]
[1737669356166,0.0199,103080.0,103070.0,0.15]
[1737669356574,0.09814089,103090.0,103070.0,0.097021]
[1737669356776,0.44755083,103090.0,103070.0,0.247019]
[1737669357024,0.0199,103080.0,103070.0,0.441061]
[1737669357178,0.44754383,103090.0,103070.0,0.441061]
[1737669357381,0.44754383,103090.0,103070.0,0.247019]
[1737669357625,0.64154983,103090.0,103070.0,0.247019]
[1737669358224,0.44754383,103090.0,103070.0,0.247019]
[1737669358431,0.01802921,103080.0,103070.0,0.44106]
[1737669358647,0.03792921,103080.0,103070.0,0.15]
[1737669358854,0.03792921,103080.0,103070.0,0.247021]
[1737669359660,0.04875517,103080.0,103070.0,0.247021]
[1737669359867,0.02885517,103080.0,103070.0,0.247021]
[1737669360679,0.35019154,103090.0,103070.0,0.443055]
[1737669360680,0.04953331,103090.0,103070.0,0.443055]
[1737669360910,0.04953331,103090.0,103070.0,0.249021]
[1737669360911,0.0199,103080.0,103070.0,0.249021]
[1737669361685,0.34055531,103090.0,103070.0,0.443061]
[1737669361893,0.2438896,103090.0,103070.0,0.637102]
[1737669362099,0.04953331,103090.0,103070.0,0.637086]
[1737669362303,0.04953331,103090.0,103070.0,0.829119]
[1737669362498,0.04953331,103090.0,103070.0,0.829111]
[1737669362980,0.04953331,103090.0,103080.0,0.097012]
[1737669363563,0.05937233,103090.0,103080.0,0.097012]
[1737669364495,0.0199,103080.0,103070.0,0.247021]
[1737669364825,0.0199,103080.0,103070.0,0.24731962]
[1737669365025,0.07815,103080.0,103070.0,0.24731962]
[1737669365281,0.0199,103080.0,103070.0,0.24731962]
[1737669366995,0.097012,103080.0,103070.0,0.00029862]
[1737669367764,0.19435929,103080.0,103070.0,0.00029862]
[1737669368013,0.27560929,103080.0,103070.0,0.00029862]
[1737669368483,0.32560929,103080.0,103070.0,0.00029862]
[1737669369209,0.27560929,103080.0,103070.0,0.00029862]
[1737669369414,0.32560929,103080.0,103070.0,0.00029862]
[1737669371844,0.27560929,103080.0,103070.0,0.00029862]
[1737669373420,0.32560929,103080.0,103070.0,0.00029862]
[1737669374025,0.52295658,103080.0,103070.0,0.00029862]
[1737669374908,0.32560929,103080.0,103070.0,0.01029862]
[1737669375561,0.27560929,103080.0,103070.0,0.01029862]
[1737669375770,0.27560929,103080.0,103070.0,0.01045921]
[1737669375992,0.32560929,103080.0,103070.0,0.01045921]
[1737669376178,0.32560929,103080.0,103070.0,0.01145921]
[1737669376537,0.32560929,103080.0,103070.0,0.01160141]
[1737669376960,0.27560929,103080.0,103070.0,0.01160141]
[1737669377321,0.32560929,103080.0,103070.0,0.00960141]
[1737669378139,0.27560929,103080.0,103070.0,0.00960141]
[1737669378338,0.19735929,103080.0,103070.0,0.00960141]
[1737669378548,0.122912,103080.0,103070.0,0.00960141]
[1737669378786,0.119912,103080.0,103070.0,0.00960141]
[1737669379003,0.122912,103080.0,103070.0,0.00960141]
[1737669380621,0.122912,103080.0,103070.0,0.08970141]
[1737669382464,0.006,103080.0,103070.0,0.08970141]
[1737669382688,0.122912,103080.0,103070.0,0.08970141]
[1737669383079,0.0259,103080.0,103070.0,0.08970141]
[1737669383289,0.0259,103080.0,103070.0,0.18672241]
[1737669383490,0.122912,103080.0,103070.0,0.08970141]
[1737669384113,0.15189567,103080.0,103070.0,0.08970141]
[1737669384318,0.14889567,103080.0,103070.0,0.18672241]
[1737669384644,0.14689567,103080.0,103070.0,0.18672241]
[1737669385286,0.12699567,103080.0,103070.0,0.18672241]
[1737669385573,0.12799567,103080.0,103070.0,0.18672241]
[1737669386138,0.03098367,103080.0,103070.0,0.4838697]
[1737669387428,0.04310958,103080.0,103070.0,0.4838697]
[1737669388284,0.0434082,103080.0,103070.0,0.4838697]
[1737669388490,0.1404202,103080.0,103070.0,0.28950141]
[1737669388921,0.00229862,103080.0,103070.0,0.38652241]
[1737669389972,0.00229862,103080.0,103070.0,0.4838697]
[1737669390380,0.00229862,103080.0,103070.0,0.4839697]
[1737669390549,0.00129862,103080.0,103070.0,0.4839697]
[1737669390946,0.00229862,103080.0,103070.0,0.4839697]